fUST/lending_fUST_20240110
["ID","MTS","AMOUNT","RATE_DAILY","PERIOD"]
[311040331,1704886248955,-500.0,0.00028219,2]
[311040332,1704886248964,-500.0,0.00028219,2]
[311040333,1704886248974,-819.73,0.00028219,2]
[311040334,1704886248983,-500.0,0.00028219,2]
[311040335,1704886248993,-500.0,0.00028219,2]
[311040336,1704886249003,-225.06263195,0.00028219,2]
[311040337,1704886249012,-500.0,0.00028219,2]
[311040338,1704886249022,-500.0,0.00028219,2]
[311040339,1704886249031,-500.0,0.00028219,2]
[311040340,1704886249040,-500.0,0.00028219,2]
[311040341,1704886249049,-500.0,0.00028219,2]
[311040342,1704886249058,-3364.67,0.00028219,2]
[311040343,1704886249067,-500.0,0.00028219,2]
[311040344,1704886249077,-500.0,0.00028219,2]
[311040345,1704886249086,-500.0,0.00028219,2]
[311040346,1704886249095,-541.98,0.00028219,2]
[311040347,1704886249104,-409.05798696,0.00028219,2]
[311040348,1704886249114,-500.0,0.00028219,2]
[311040349,1704886249123,-500.0,0.00028219,2]
[311040350,1704886249132,-1097.19,0.00028219,2]
[311040351,1704886249141,-500.0,0.00028219,2]
[311040352,1704886249150,-500.0,0.00028219,2]
[311040353,1704886249160,-1410.43,0.00028219,2]
[311040354,1704886249169,-500.0,0.00028219,2]
[311040355,1704886249178,-500.0,0.00028219,2]
[311040356,1704886249187,-647.68493227,0.00028219,2]
[311040357,1704886249196,-7927.97,0.00028219,2]
[311040358,1704886249205,-1195.82,0.00028219,2]
[311040359,1704886249214,-5686.09,0.00028219,2]
[311040360,1704886249223,-398.56874292,0.00028219,2]
[311040361,1704886249232,-7362.5,0.00028219,2]
[311040362,1704886249241,-500.0,0.00028219,2]
[311040363,1704886249251,-1584.24,0.00028219,2]
[311040364,1704886249260,-500.0,0.00028219,2]
[311040365,1704886249270,-500.0,0.00028219,2]
[311040366,1704886249279,-489.67848275,0.00028219,2]
[311040367,1704886249288,-500.0,0.00028219,2]
[311040368,1704886249297,-500.0,0.00028219,2]
[311040369,1704886249306,-636.28,0.00028219,2]
[311040370,1704886249315,-654.25,0.00028219,2]
[311040371,1704886249324,-500.0,0.00028219,2]
[311040372,1704886249333,-1827.95,0.00028219,2]
[311040373,1704886249343,-500.0,0.00028219,2]
[311040374,1704886249355,-500.0,0.00028219,2]
[311040375,1704886249364,-500.0,0.00028219,2]
[311040376,1704886249377,-5399.79,0.00028219,2]
[311040377,1704886249386,-500.0,0.00028219,2]
[311040378,1704886249395,-3385.97,0.00028219,2]
[311040379,1704886249404,-1000.0,0.00028219,4]
[311040380,1704886249414,-500.0,0.00028219,2]
[311040381,1704886249423,-1942.53,0.00028219,2]
[311040382,1704886249432,-500.0,0.00028219,2]
[311040383,1704886249441,-44004.65,0.00028219,2]
[311040384,1704886249450,-500.0,0.00028219,2]
[311040385,1704886249459,-16678.37,0.00028219,2]
[311040386,1704886249468,-2556.49,0.00028219,2]
[311040387,1704886249477,-1868.92,0.00028219,2]
[311040388,1704886249486,-500.0,0.00028219,2]
[311040389,1704886249495,-500.0,0.00028219,2]
[311040390,1704886249504,-500.0,0.00028219,2]
[311040391,1704886249515,-500.0,0.00028219,2]
[311040392,1704886249525,-822.4,0.00028219,2]
[311040393,1704886249534,-500.0,0.00028219,2]
[311040394,1704886249544,-500.0,0.00028219,2]
[311040395,1704886249553,-500.0,0.00028219,2]
[311040396,1704886249650,-874.31,0.00028219,2]
[311040397,1704886249660,-500.0,0.00028219,2]
[311040398,1704886249669,-1000.0,0.00028219,2]
[311040399,1704886249678,-500.0,0.00028219,5]
[311040400,1704886249687,-500.0,0.00028219,2]
[311040401,1704886249696,-500.0,0.00028219,2]
[311040402,1704886249705,-500.0,0.00028219,2]
[311040403,1704886249714,-2673.91,0.00028219,2]
[311040404,1704886249723,-500.0,0.00028219,2]
[311040405,1704886249732,-1558.98,0.00028219,2]
[311040406,1704886249741,-500.0,0.00028219,2]
[311040407,1704886249750,-4343.62,0.00028219,2]
[311040408,1704886249759,-534.92,0.00028219,2]
[311040409,1704886249769,-790.67,0.00028219,2]
[311040410,1704886249779,-500.0,0.00028219,2]
[311040411,1704886249788,-500.0,0.00028219,2]
[311040412,1704886249797,-500.0,0.00028219,2]
[311040413,1704886249806,-500.0,0.00028219,2]
[311040414,1704886249815,-500.0,0.00028219,2]
[311040415,1704886249824,-3553.39,0.00028219,2]
[311040416,1704886249834,-1274.11,0.00028219,2]
[311040417,1704886249843,-500.0,0.00028219,2]
[311040418,1704886249852,-500.0,0.00028219,2]
[311040419,1704886249861,-500.0,0.00028219,2]
[311040420,1704886249871,-157.85117269,0.0002828,2]
[311040421,1704886249880,-500.0,0.00028356,2]
[311040422,1704886249889,-500.0,0.00028493,2]
[311040423,1704886249898,-500.0,0.00028493,2]
[311040424,1704886249908,-500.0,0.00028493,2]
[311040425,1704886249917,-500.0,0.00028493,2]
[311040426,1704886249926,-500.0,0.00028493,2]
[311040427,1704886249935,-500.0,0.00028493,2]
[311040428,1704886249945,-500.0,0.00028493,2]
[311040429,1704886249954,-624.43807266,0.00028493,2]
[311040430,1704886249963,-500.0,0.00028493,2]
[311040431,1704886249972,-1985.25,0.00028493,2]
[311040432,1704886249982,-510.62,0.00028493,2]
[311040433,1704886249991,-500.0,0.00028493,2]
[311040434,1704886250000,-262.71124088,0.00028493,2]
[311040435,1704886250009,-500.0,0.00028493,2]
[311040436,1704886250019,-500.0,0.00028493,2]
[311040437,1704886250029,-500.0,0.00028493,2]
[311040438,1704886250039,-500.0,0.00028493,2]
[311040439,1704886250050,-500.0,0.00028493,2]
[311040440,1704886250060,-500.0,0.00028493,2]
[311040441,1704886250070,-500.0,0.00028493,2]
[311040442,1704886250080,-500.0,0.00028493,2]
[311040443,1704886250090,-500.0,0.00028493,2]
[311040444,1704886250099,-744.55,0.00028493,2]
[311040445,1704886250109,-500.0,0.00028493,2]
[311040446,1704886250118,-1313.75,0.00028493,2]
[311040447,1704886250128,-279.00568243,0.00028493,2]
[311040448,1704886250137,-500.0,0.00028493,2]
[311040449,1704886250149,-543.92531298,0.00028493,2]
[311040450,1704886250161,-500.0,0.00028493,2]
[311040451,1704886250170,-500.0,0.00028493,2]
[311040452,1704886250180,-659.78,0.00028493,2]
[311040453,1704886250190,-500.0,0.00028493,2]
[311040454,1704886250201,-500.0,0.00028493,2]
[311040455,1704886250211,-1355.82,0.00028493,2]
[311040456,1704886250221,-276.33012532,0.00028493,2]
[311040457,1704886250232,-500.0,0.00028493,2]
[311040458,1704886250245,-500.0,0.00028493,2]
[311040459,1704886250255,-500.0,0.00028493,2]
[311040460,1704886250267,-500.0,0.00028493,2]
[311040461,1704886250277,-929.76,0.00028493,2]
[311040462,1704886250287,-504.63675004,0.00028493,2]
[311040463,1704886250297,-1022.56,0.00028493,2]
[311040464,1704886250306,-1532.92,0.00028493,2]
[311040465,1704886250317,-500.0,0.00028493,2]
[311040466,1704886250326,-500.0,0.00028493,2]
[311040467,1704886250336,-500.0,0.00028493,2]
[311040468,1704886250346,-599.21,0.00028493,2]
[311040469,1704886250355,-1558.18,0.00028493,2]
[311040470,1704886250365,-552.33,0.00028493,2]
[311040471,1704886250374,-500.0,0.00028493,2]
[311040472,1704886250384,-500.0,0.00028493,2]
[311040473,1704886250393,-1323.25,0.00028493,2]
[311040474,1704886250402,-500.0,0.00028493,2]
[311040475,1704886250412,-500.0,0.00028493,2]
[311040476,1704886250422,-819.73,0.00028493,2]
[311040477,1704886250431,-500.0,0.00028493,2]
[311040478,1704886250441,-500.0,0.00028493,2]
[311040479,1704886250450,-500.0,0.00028493,2]
[311040480,1704886250459,-500.0,0.00028493,2]
[311040481,1704886250469,-221.44410943,0.00028493,2]
[311040482,1704886250479,-500.0,0.00028493,2]
[311040483,1704886250489,-500.0,0.00028493,2]
[311040484,1704886250499,-3364.67,0.00028493,2]
[311040485,1704886250509,-500.0,0.00028493,2]
[311040486,1704886250521,-500.0,0.00028493,2]
[311040487,1704886250530,-500.0,0.00028493,2]
[311040488,1704886250541,-541.98,0.00028493,2]
[311040489,1704886250552,-500.0,0.00028493,2]
[311040490,1704886250562,-500.0,0.00028493,2]
[311040491,1704886250572,-1097.19,0.00028493,2]
[311040492,1704886250582,-500.0,0.00028493,2]
[311040493,1704886250591,-500.0,0.00028493,2]
[311040494,1704886250601,-1410.43,0.00028493,2]
[311040495,1704886250611,-500.0,0.00028493,2]
[311040496,1704886250620,-500.0,0.00028493,2]
[311040497,1704886250629,-7927.97,0.00028493,2]
[311040498,1704886250639,-1195.82,0.00028493,2]
[311040499,1704886250649,-5686.09,0.00028493,2]
[311040500,1704886250659,-7362.5,0.00028493,2]
[311040501,1704886250670,-500.0,0.00028493,2]
[311040502,1704886250680,-1584.24,0.00028493,2]
[311040503,1704886250691,-500.0,0.00028493,2]
[311040504,1704886250701,-517.73035116,0.00028493,2]
[311040505,1704886250711,-500.0,0.00028493,2]
[311040506,1704886250721,-500.0,0.00028493,2]
[311040507,1704886250732,-636.28,0.00028493,2]
[311040508,1704886250742,-654.25,0.00028493,2]
[311040509,1704886250751,-600.72202178,0.00028493,2]
[311040510,1704886250761,-1827.95,0.00028493,2]
[311040511,1704886250772,-304.74340375,0.00028493,2]
[311040512,1704886250782,-532.07667742,0.00028493,2]
[311040513,1704886250792,-500.0,0.00028493,2]
[311040514,1704886250801,-5399.79,0.00028493,2]
[311040515,1704886250810,-500.0,0.00028493,2]
[311040516,1704886250820,-3385.97,0.00028493,2]
[311040517,1704886250829,-645.86435661,0.00028493,4]
[311040518,1704886250839,-500.0,0.00028493,2]
[311040519,1704886250848,-1942.53,0.00028493,2]
[311040520,1704886250857,-500.0,0.00028493,2]
[311040521,1704886250866,-44004.65,0.00028493,2]
[311040522,1704886250876,-500.0,0.00028493,2]
[311040523,1704886250885,-16678.37,0.00028493,2]
[311040524,1704886250895,-2556.49,0.00028493,2]
[311040525,1704886250905,-1868.92,0.00028493,2]
[311040526,1704886250914,-500.0,0.00028493,2]
[311040527,1704886250924,-500.0,0.00028493,2]
[311040528,1704886250933,-500.0,0.00028493,2]
[311040529,1704886250942,-500.0,0.00028493,2]
[311040530,1704886250952,-822.4,0.00028493,2]
[311040531,1704886250962,-500.0,0.00028493,2]
[311040532,1704886250972,-500.0,0.00028493,2]
[311040533,1704886250980,-500.0,0.00028493,2]
[311040534,1704886250989,-874.31,0.00028493,2]
[311040535,1704886250998,-500.0,0.00028493,2]
[311040536,1704886251009,-734.41555908,0.00028493,2]
[311040537,1704886251018,-500.0,0.00028493,5]
[311040538,1704886251027,-500.0,0.00028493,2]
[311040539,1704886251037,-359.97101555,0.00028493,2]
[311040540,1704886251046,-500.0,0.00028493,2]
[311040541,1704886251055,-2673.91,0.00028493,2]
[311040542,1704886251065,-500.0,0.00028493,2]
[311040543,1704886251075,-1558.98,0.00028493,2]
[311040544,1704886251085,-500.0,0.00028493,2]
[311040545,1704886251095,-4343.62,0.00028493,2]
[311040546,1704886251104,-534.92,0.00028493,2]
[311040547,1704886251113,-790.67,0.00028493,2]
[311040548,1704886251123,-500.0,0.00028493,2]
[311040549,1704886251132,-500.0,0.00028493,2]
[311040550,1704886251142,-500.0,0.00028493,2]
[311040551,1704886251151,-500.0,0.00028493,2]
[311040552,1704886251160,-500.0,0.00028493,2]
[311040553,1704886251169,-3553.39,0.00028493,2]
[311040554,1704886251179,-1274.11,0.00028493,2]
[311040555,1704886251189,-500.0,0.00028493,2]
[311040556,1704886251198,-500.0,0.00028493,2]
[311040557,1704886251208,-500.0,0.00028493,2]
[311040558,1704886251218,-500.0,0.0002863,2]
[311040559,1704886251227,-8000.0,0.000287,14]
[311040560,1704886251237,-162.26621647,0.00028701,3]
[311040561,1704886251246,-155.68551168,0.00028765,2]
[311040562,1704886251256,-500.0,0.00028767,2]
[311040563,1704886251266,-500.0,0.00028767,2]
[311040564,1704886251276,-500.0,0.00028767,2]
[311040565,1704886251284,-500.0,0.00028767,2]
[311040566,1704886251294,-500.0,0.00028767,2]
[311040567,1704886251303,-500.0,0.00028767,2]
[311040568,1704886251313,-500.0,0.00028767,2]
[311040569,1704886251323,-1985.25,0.00028767,2]
[311040570,1704886251332,-510.62,0.00028767,2]
[311040571,1704886251342,-500.0,0.00028767,2]
[311040572,1704886251351,-500.0,0.00028767,2]
[311040573,1704886251361,-500.0,0.00028767,2]
[311040574,1704886251370,-229.48485561,0.00028767,2]
[311040575,1704886251380,-500.0,0.00028767,2]
[311040576,1704886251389,-500.0,0.00028767,2]
[311040577,1704886251399,-500.0,0.00028767,2]
[311040578,1704886251407,-500.0,0.00028767,2]
[311040579,1704886251416,-500.0,0.00028767,2]
[311040580,1704886251426,-500.0,0.00028767,2]
[311040581,1704886251435,-744.55,0.00028767,2]
[311040582,1704886251444,-500.0,0.00028767,2]
[311040583,1704886251453,-1313.75,0.00028767,2]
[311040584,1704886251463,-500.0,0.00028767,2]
[311040585,1704886251472,-500.0,0.00028767,2]
[311040586,1704886251481,-500.0,0.00028767,2]
[311040587,1704886251491,-659.78,0.00028767,2]
[311040588,1704886251500,-500.0,0.00028767,2]
[311040589,1704886251509,-500.0,0.00028767,2]
[311040590,1704886251519,-1355.82,0.00028767,2]
[311040591,1704886251528,-183.45844237,0.00028767,2]
[311040592,1704886251538,-500.0,0.00028767,2]
[311040593,1704886251547,-500.0,0.00028767,2]
[311040594,1704886251557,-500.0,0.00028767,2]
[311040595,1704886251566,-929.76,0.00028767,2]
[311040596,1704886251575,-1022.56,0.00028767,2]
[311040597,1704886251585,-1532.92,0.00028767,2]
[311040598,1704886251594,-500.0,0.00028767,2]
[311040599,1704886251603,-500.0,0.00028767,2]
[311040600,1704886251612,-500.0,0.00028767,2]
[311040601,1704886251621,-599.21,0.00028767,2]
[311040602,1704886251631,-1558.18,0.00028767,2]
[311040603,1704886251640,-552.33,0.00028767,2]
[311040604,1704886251649,-500.0,0.00028767,2]
[311040605,1704886251658,-500.0,0.00028767,2]
[311040606,1704886251667,-1323.25,0.00028767,2]
[311040607,1704886251676,-500.0,0.00028767,2]
[311040608,1704886251686,-500.0,0.00028767,2]
[311040609,1704886251695,-819.73,0.00028767,2]
[311040610,1704886251704,-500.0,0.00028767,2]
[311040611,1704886251714,-500.0,0.00028767,2]
[311040612,1704886251723,-500.0,0.00028767,2]
[311040613,1704886251733,-155.0,0.00028767,2]
[311040614,1704886251741,-500.0,0.00028767,2]
[311040615,1704886251835,-632.64408372,0.00028767,2]
[311040616,1704886251845,-500.0,0.00028767,2]
[311040617,1704886251855,-3364.67,0.00028767,2]
[311040618,1704886251864,-500.0,0.00028767,2]
[311040619,1704886251874,-500.0,0.00028767,2]
[311040620,1704886251883,-500.0,0.00028767,2]
[311040621,1704886251892,-541.98,0.00028767,2]
[311040622,1704886251902,-500.0,0.00028767,2]
[311040623,1704886251911,-500.0,0.00028767,2]
[311040624,1704886251921,-1097.19,0.00028767,2]
[311040625,1704886251929,-500.0,0.00028767,2]
[311040626,1704886251938,-500.0,0.00028767,2]
[311040627,1704886251948,-1410.43,0.00028767,2]
[311040628,1704886251957,-500.0,0.00028767,2]
[311040629,1704886251966,-7927.97,0.00028767,2]
[311040630,1704886251975,-1195.82,0.00028767,2]
[311040631,1704886251984,-5686.09,0.00028767,2]
[311040632,1704886251994,-6557.29859577,0.00028767,2]
[311040633,1704886252115,-805.20140423,0.00028767,2]
[311040634,1704886252124,-500.0,0.00028767,2]
[311040635,1704886252134,-1584.24,0.00028767,2]
[311040636,1704886252144,-451.32622633,0.00028767,2]
[311040637,1704886252156,-500.0,0.00028767,2]
[311040638,1704886252166,-500.0,0.00028767,2]
[311040639,1704886252175,-636.28,0.00028767,2]
[311040640,1704886252184,-654.25,0.00028767,2]
[311040641,1704886252194,-1827.95,0.00028767,2]
[311040642,1704886252203,-500.0,0.00028767,2]
[311040643,1704886252212,-5399.79,0.00028767,2]
[311040644,1704886252221,-500.0,0.00028767,2]
[311040645,1704886252230,-3385.97,0.00028767,2]
[311040646,1704886252239,-500.0,0.00028767,2]
[311040647,1704886252249,-1942.53,0.00028767,2]
[311040648,1704886252259,-647.16293889,0.00028767,2]
[311040649,1704886252269,-44004.65,0.00028767,2]
[311040650,1704886252279,-500.0,0.00028767,2]
[311040651,1704886252288,-16678.37,0.00028767,2]
[311040652,1704886252297,-2556.49,0.00028767,2]
[311040653,1704886252306,-1868.92,0.00028767,2]
[311040654,1704886252316,-500.0,0.00028767,2]
[311040655,1704886252325,-500.0,0.00028767,2]
[311040656,1704886252336,-500.0,0.00028767,2]
[311040657,1704886252345,-500.0,0.00028767,2]
[311040658,1704886252355,-822.4,0.00028767,2]
[311040659,1704886252364,-500.0,0.00028767,2]
[311040660,1704886252373,-500.0,0.00028767,2]
[311040661,1704886252382,-500.0,0.00028767,2]
[311040662,1704886252391,-874.31,0.00028767,2]
[311040663,1704886252399,-500.0,0.00028767,2]
[311040664,1704886252408,-500.0,0.00028767,5]
[311040665,1704886252417,-254.15774864,0.00028767,2]
[311040666,1704886252426,-500.0,0.00028767,2]
[311040667,1704886252435,-2673.91,0.00028767,2]
[311040668,1704886252445,-373.94050731,0.00028767,2]
[311040669,1704886252454,-1558.98,0.00028767,2]
[311040670,1704886252463,-500.0,0.00028767,2]
[311040671,1704886252472,-4343.62,0.00028767,2]
[311040672,1704886252482,-534.92,0.00028767,2]
[311040673,1704886252491,-790.67,0.00028767,2]
[311040674,1704886252500,-500.0,0.00028767,2]
[311040675,1704886252509,-500.0,0.00028767,2]
[311040676,1704886252518,-500.0,0.00028767,2]
[311040677,1704886252528,-500.0,0.00028767,2]
[311040678,1704886252537,-539.29453321,0.00028767,2]
[311040679,1704886252546,-3553.39,0.00028767,2]
[311040680,1704886252555,-1274.11,0.00028767,2]
[311040681,1704886252564,-500.0,0.00028767,2]
[311040682,1704886252573,-500.0,0.00028767,2]
[311040683,1704886252582,-500.0,0.00028767,2]
[311040684,1704886252591,-454.58976323,0.00028786,5]
[311040685,1704886252600,-184.46633966,0.00028786,2]
[311040686,1704886252609,-10189.91930689,0.00028786,2]
[311040687,1704886252618,-223.622,0.000288,4]
[311040688,1704886252628,-223.623,0.000288,4]
[311040689,1704886252637,-223.623,0.000288,4]
[311040690,1704886252646,-223.622,0.000288,4]
[311040691,1704886252655,-223.623,0.000288,4]
[311040692,1704886252664,-43342.82935125,0.000288,2]
[311040693,1704886252673,-6000.0,0.000289,2]
[311040694,1704886252682,-6000.0,0.000289,2]
[311040695,1704886252691,-6446.862685,0.000289,2]
[311040696,1704886252700,-500.0,0.00028904,2]
[311040697,1704886252709,-2043.36173733,0.00029,2]
[311040698,1704886252719,-830.93075616,0.00029,2]
[311040699,1704886252729,-2000.0,0.00029,2]
[311040700,1704886252738,-6000.0,0.00029,2]
[311040701,1704886252747,-5999.99,0.00029,2]
[311040702,1704886252756,-6000.0,0.00029,2]
[311040703,1704886252766,-1500.0,0.00029,2]
[311040704,1704886252775,-4501.13,0.0002904,2]
[311040705,1704886252784,-500.0,0.00029041,2]
[311040706,1704886252793,-500.0,0.00029041,2]
[311040707,1704886252802,-500.0,0.00029041,2]
[311040708,1704886252811,-500.0,0.00029041,2]
[311040709,1704886252820,-500.0,0.00029041,2]
[311040710,1704886252829,-500.0,0.00029041,2]
[311040711,1704886252838,-500.0,0.00029041,2]
[311040712,1704886252847,-1985.25,0.00029041,2]
[311040713,1704886252856,-510.62,0.00029041,2]
[311040714,1704886252865,-500.0,0.00029041,2]
[311040715,1704886252873,-500.0,0.00029041,2]
[311040716,1704886252882,-500.0,0.00029041,2]
[311040717,1704886252891,-500.0,0.00029041,2]
[311040718,1704886252901,-500.0,0.00029041,2]
[311040719,1704886252910,-500.0,0.00029041,2]
[311040720,1704886252919,-500.0,0.00029041,2]
[311040721,1704886252928,-500.0,0.00029041,2]
[311040722,1704886252937,-500.0,0.00029041,2]
[311040723,1704886252946,-744.55,0.00029041,2]
[311040724,1704886252955,-500.0,0.00029041,2]
[311040725,1704886252964,-1313.75,0.00029041,2]
[311040726,1704886252973,-500.0,0.00029041,2]
[311040727,1704886252982,-500.0,0.00029041,2]
[311040728,1704886252991,-483.35962442,0.00029041,2]
[311040729,1704886253000,-659.78,0.00029041,2]
[311040730,1704886253010,-500.0,0.00029041,2]
[311040731,1704886253019,-500.0,0.00029041,2]
[311040732,1704886253028,-1355.82,0.00029041,2]
[311040733,1704886253037,-500.0,0.00029041,2]
[311040734,1704886253046,-500.0,0.00029041,2]
[311040735,1704886253055,-500.0,0.00029041,2]
[311040736,1704886253064,-929.76,0.00029041,2]
[311040737,1704886253074,-1022.56,0.00029041,2]
[311040738,1704886253083,-1532.92,0.00029041,2]
[311040739,1704886253091,-500.0,0.00029041,2]
[311040740,1704886253100,-500.0,0.00029041,2]
[311040741,1704886253110,-500.0,0.00029041,2]
[311040742,1704886253119,-599.21,0.00029041,2]
[311040743,1704886253128,-1558.18,0.00029041,2]
[311040744,1704886253137,-552.33,0.00029041,2]
[311040745,1704886253146,-500.0,0.00029041,2]
[311040746,1704886253156,-500.0,0.00029041,2]
[311040747,1704886253166,-1323.25,0.00029041,2]
[311040748,1704886253176,-500.0,0.00029041,2]
[311040749,1704886253185,-500.0,0.00029041,2]
[311040750,1704886253195,-819.73,0.00029041,2]
[311040751,1704886253204,-500.0,0.00029041,2]
[311040752,1704886253214,-461.93363699,0.00029041,2]
[311040753,1704886253224,-500.0,0.00029041,2]
[311040754,1704886253233,-500.0,0.00029041,2]
[311040755,1704886253243,-500.0,0.00029041,2]
[311040756,1704886253252,-3364.67,0.00029041,2]
[311040757,1704886253261,-500.0,0.00029041,2]
[311040758,1704886253271,-500.0,0.00029041,2]
[311040759,1704886253281,-500.0,0.00029041,2]
[311040760,1704886253290,-541.98,0.00029041,2]
[311040761,1704886253298,-500.0,0.00029041,2]
[311040762,1704886253307,-500.0,0.00029041,2]
[311040763,1704886253316,-1097.19,0.00029041,2]
[311040764,1704886253325,-500.0,0.00029041,2]
[311040765,1704886253335,-500.0,0.00029041,2]
[311040766,1704886253344,-1410.43,0.00029041,2]
[311040767,1704886253352,-500.0,0.00029041,2]
[311040768,1704886253362,-7927.97,0.00029041,2]
[311040769,1704886253371,-1195.82,0.00029041,2]
[311040770,1704886253380,-5686.09,0.00029041,2]
[311040771,1704886253389,-7362.5,0.00029041,2]
[311040772,1704886253398,-392.95669236,0.00029041,2]
[311040773,1704886253406,-1584.24,0.00029041,2]
[311040774,1704886253415,-500.0,0.00029041,2]
[311040775,1704886253424,-500.0,0.00029041,2]
[311040776,1704886253433,-636.28,0.00029041,2]
[311040777,1704886253441,-654.25,0.00029041,2]
[311040778,1704886253450,-1827.95,0.00029041,2]
[311040779,1704886253459,-500.0,0.00029041,2]
[311040780,1704886253468,-5399.79,0.00029041,2]
[311040781,1704886253477,-500.0,0.00029041,2]
[311040782,1704886253486,-3385.97,0.00029041,2]
[311040783,1704886253495,-500.0,0.00029041,2]
[311040784,1704886253504,-1942.53,0.00029041,2]
[311040785,1704886253513,-44004.65,0.00029041,2]
[311040786,1704886253523,-500.0,0.00029041,2]
[311040787,1704886253532,-5864.33632368,0.00029041,2]
[311040788,1704886253546,-3810.87602019,0.00029041,2]
[311040789,1704886253720,-264.87381963,0.00019999,2]
[311040790,1704886253730,-1718.01,0.00028219,2]
[311040791,1704886253739,-1718.01,0.00028493,2]
[311040792,1704886253747,-1718.01,0.00028767,2]
[311040793,1704886253757,-7003.15765613,0.00029041,2]
[311040794,1704886253766,-2556.49,0.00029041,2]
[311040795,1704886253775,-1868.92,0.00029041,2]
[311040796,1704886253784,-500.0,0.00029041,2]
[311040797,1704886253794,-500.0,0.00029041,2]
[311040798,1704886253803,-500.0,0.00029041,2]
[311040799,1704886253811,-500.0,0.00029041,2]
[311040800,1704886253820,-822.4,0.00029041,2]
[311040801,1704886253830,-500.0,0.00029041,2]
[311040802,1704886253839,-500.0,0.00029041,2]
[311040803,1704886253848,-500.0,0.00029041,2]
[311040804,1704886253857,-874.31,0.00029041,2]
[311040805,1704886253866,-500.0,0.00029041,2]
[311040806,1704886253876,-500.0,0.00029041,5]
[311040807,1704886253885,-2673.91,0.00029041,2]
[311040808,1704886253895,-500.0,0.00029041,2]
[311040809,1704886253904,-1558.98,0.00029041,2]
[311040810,1704886253913,-500.0,0.00029041,2]
[311040811,1704886253922,-2306.18476258,0.00029041,2]
[311040812,1704886253950,-2037.43523742,0.00029041,2]
[311040813,1704886253959,-534.92,0.00029041,2]
[311040814,1704886253969,-790.67,0.00029041,2]
[311040815,1704886253978,-500.0,0.00029041,2]
[311040816,1704886253987,-500.0,0.00029041,2]
[311040817,1704886253996,-500.0,0.00029041,2]
[311040818,1704886254006,-500.0,0.00029041,2]
[311040819,1704886254014,-3553.39,0.00029041,2]
[311040820,1704886254024,-1274.11,0.00029041,2]
[311040821,1704886254033,-500.0,0.00029041,2]
[311040822,1704886254042,-500.0,0.00029041,2]
[311040823,1704886254051,-500.0,0.00029041,2]
[311040824,1704886254061,-1718.01,0.00029041,2]
[311040825,1704886254070,-620.00043137,0.00029106,2]
[311040826,1704886254079,-6000.0,0.0002914,2]
[311040827,1704886254088,-426.88,0.0002914,2]
[311040828,1704886254097,-500.0,0.00029178,2]
[311040829,1704886254106,-151.0,0.00029233,2]
[311040830,1704886254116,-373.66045,0.000293,14]